bitfinex/quotes_ETHUSD_20250903
["timestamp","ask_amount","ask_price","bid_price","bid_amount"]
[1756908758451,6.3480958,4440.9,4439.1,0.466]
[1756908758671,10.4750958,4440.9,4439.6,0.4651]
[1756908758974,11.4938958,4440.9,4439.6,0.4651]
[1756908759271,11.15458915,4440.9,4439.1,0.4489]
[1756908759475,11.61738915,4440.9,4439.2,0.4651]
[1756908759660,11.61738915,4440.9,4437.3,0.001]
[1756908759661,3.0,4440.8,4438.7,0.4651]
[1756908759860,2.25230297,4439.9,4438.7,0.4651]
[1756908760174,3.0,4439.9,4439.1,0.4651]
[1756908760376,9.37730297,4439.9,4439.8,0.3181]
[1756908760535,9.37730297,4439.9,4439.8,0.025]
[1756908760743,9.38130297,4439.9,4439.8,0.025]
[1756908761055,3.0,4439.9,4439.8,0.3181]
[1756908761269,7.128,4439.9,4439.8,0.7832]
[1756908761458,3.0,4439.9,4439.8,1.2321]
[1756908761651,0.12304735,4440.6,4439.9,2.25230297]
[1756908761850,0.12304735,4440.6,4439.9,0.914]
[1756908762075,0.12304735,4440.6,4440.5,0.2931]
[1756908762241,0.12224735,4440.6,4440.5,1.2071]
[1756908762586,0.12224735,4440.6,4440.5,0.7582]
[1756908762750,0.12224735,4440.6,4440.5,1.2071]
[1756908763069,0.12224735,4440.6,4440.5,3.57980864]
[1756908765662,0.12224735,4440.6,4440.5,1.32781]
[1756908765864,2.38857124,4440.6,4439.8,0.4911]
[1756908766188,0.01437596,4440.5,4439.8,0.026]
[1756908766376,2.25230297,4439.9,4439.8,0.026]
[1756908766677,6.38530297,4439.9,4439.8,0.026]
[1756908766880,9.38530297,4439.9,4439.8,0.026]
[1756908767087,11.50040297,4439.9,4439.8,0.026]
[1756908767267,11.61320297,4439.9,4439.8,0.026]
[1756908768280,7.48020297,4439.9,4439.8,0.026]
[1756908768444,11.61220297,4439.9,4439.8,0.026]
[1756908768645,3.0,4439.8,4439.3,0.001]
[1756908768881,6.04455665,4439.4,4439.3,0.001]
[1756908769083,10.47785665,4439.4,4439.3,0.001]
[1756908769270,11.60945665,4439.4,4439.3,0.001]
[1756908769843,11.60645665,4439.4,4439.3,0.001]
[1756908770584,7.48045665,4439.4,4439.3,0.001]
[1756908770783,11.60645665,4439.4,4439.3,0.001]
[1756908770960,11.60445665,4439.4,4439.3,0.001]
[1756908772687,7.48045665,4439.4,4439.3,0.001]
[1756908772865,11.60245665,4439.4,4439.3,0.001]
[1756908774056,11.59945665,4439.4,4439.3,0.001]
[1756908775267,11.59545665,4439.4,4439.3,0.001]
[1756908775558,11.59545665,4439.4,4437.8,0.025]
[1756908775559,6.04481038,4438.9,4438.8,1e-08]
[1756908775852,15.57281038,4438.9,4438.8,1e-08]
[1756908776071,15.57281038,4438.9,4437.8,1e-08]
[1756908776072,6.04486113,4438.8,4437.8,1e-08]
[1756908776255,2.25331801,4437.9,4437.8,1e-08]
[1756908776449,11.42099397,4437.9,4437.8,1e-08]
[1756908776676,12.54762216,4437.9,4437.8,1e-08]
[1756908777472,13.33962216,4437.9,4437.8,1e-08]
[1756908778193,13.33962216,4437.9,4435.9,0.4651]
[1756908778194,2.25377507,4437.0,4435.8,0.025]
[1756908778397,3.04597827,4436.6,4435.8,0.025]
[1756908778594,3.04633395,4435.9,4435.8,0.025]
[1756908778778,11.90570991,4435.9,4435.8,0.025]
[1756908778980,12.75163395,4435.9,4435.8,0.025]
[1756908779186,11.89133395,4435.9,4435.8,0.025]
[1756908779689,11.09733395,4435.9,4435.8,0.025]
[1756908779889,4.732,4435.9,4435.8,0.025]
[1756908780104,4.732,4435.9,4435.8,1.2289]
[1756908780302,8.849,4435.9,4435.8,1.2289]
[1756908780504,0.12079185,4436.0,4435.8,1.2289]
[1756908780805,2.63789565,4436.1,4436.0,2.25428313]
[1756908781099,1.733,4437.0,4436.0,2.70418313]
[1756908781305,3.028,4436.9,4436.1,0.4499]
[1756908781479,1.733,4437.0,4436.1,0.4499]
[1756908781685,3.84,4436.9,4436.5,2.25402253]
[1756908781885,4.116,4436.8,4436.6,0.67530225]
[1756908782121,4.116,4436.8,4436.7,0.4499]
[1756908782593,1.733,4437.0,4436.9,2.25382586]
[1756908782801,0.12212801,4437.5,4436.9,2.25382586]
[1756908782802,4.113,4437.2,4436.9,0.4499]
[1756908782976,0.12212801,4437.5,4437.0,0.4499]
[1756908783176,4.24012801,4437.5,4437.1,2.25371078]
[1756908783399,4.24012801,4437.5,4437.4,2.25357191]
[1756908783400,0.12212801,4437.5,4437.4,2.25357191]
[1756908783615,0.12212801,4437.5,4437.4,0.4499]
[1756908783979,0.12212801,4437.5,4437.4,2.70347191]
[1756908785489,0.12212801,4437.5,4437.4,2.81627191]
[1756908785880,0.12212801,4437.5,4437.4,3.49547191]
[1756908786073,0.12212801,4437.5,4437.4,4.21247371]
[1756908786483,0.12132801,4437.5,4437.4,4.21247371]
[1756908786683,0.12132801,4437.5,4437.4,3.42047371]
[1756908786905,0.12132801,4437.5,4437.4,1.1669018]
[1756908787202,0.12132801,4437.5,4437.2,0.27036108]
[1756908787377,0.12132801,4437.5,4437.0,0.1128]
[1756908787581,0.12132801,4437.5,4437.0,2.36653367]
[1756908787914,0.12132801,4437.5,4437.4,0.1128]
[1756908787915,2.37484913,4437.5,4437.4,0.1128]
[1756908788079,0.23412801,4437.5,4437.0,2.25377482]
[1756908788279,0.23412801,4437.5,4437.1,0.4499]
[1756908788280,0.12132801,4437.5,4437.1,0.4499]
[1756908788480,0.12132801,4437.5,4437.4,2.25357191]
[1756908788674,0.12132801,4437.5,4437.4,0.1128]
[1756908788887,0.12132801,4437.5,4436.6,14.67699132]
[1756908788888,0.12132801,4437.5,4436.6,0.4576]
[1756908789091,0.12132801,4437.5,4436.9,0.1128]
[1756908789092,2.48769089,4437.5,4436.9,0.1128]
[1756908789288,0.23412801,4437.5,4436.9,0.1128]
[1756908789911,0.01437596,4437.4,4436.6,0.4576]
[1756908790238,0.23412801,4437.5,4436.6,0.1128]
[1756908790381,0.23412801,4437.5,4435.8,2.2166]
[1756908790382,2.20377596,4437.4,4435.8,0.026]
[1756908790590,2.25390052,4436.8,4435.8,0.026]
[1756908790833,1.733,4437.4,4436.4,14.67699132]
[1756908791126,0.12132801,4437.5,4436.4,14.67699132]
[1756908791127,0.12132801,4437.5,4436.5,0.4576]
[1756908791479,0.01437596,4437.4,4436.5,0.4576]
[1756908791722,0.01437596,4437.3,4435.9,1.733]
[1756908791920,0.01437596,4437.3,4436.4,2.25405949]
[1756908792223,0.12132801,4437.5,4436.6,14.67699132]
[1756908792377,0.12132801,4437.5,4436.7,2.25392746]
[1756908792583,0.12132801,4437.5,4436.6,0.4556]
[1756908792799,0.12132801,4437.5,4437.2,2.25365638]
[1756908792996,0.12132801,4437.5,4436.4,2.2540763]
[1756908792997,0.12132801,4437.5,4437.3,0.68096564]
[1756908793333,0.025,4437.8,4437.3,15.13259132]
[1756908793477,0.025,4437.8,4437.7,2.25341956]
[1756908794091,0.025,4437.8,4437.4,2.70916864]
[1756908794306,0.025,4437.8,4436.7,16.40999132]
[1756908794479,0.025,4437.8,4433.5,2.21897873]
[1756908794480,2.25353346,4437.5,4436.1,14.67699132]
[1756908794678,0.025,4437.8,4436.5,2.25399849]
[1756908794921,2.25342041,4437.7,4436.9,2.25378688]
[1756908795130,2.25356785,4437.5,4436.2,2.87317904]
[1756908795350,0.01437596,4437.4,4436.3,3.0]
[1756908795499,2.25362269,4437.3,4436.2,2.08117904]
[1756908795700,0.4564,4437.5,4435.8,0.026]
[1756908795701,2.25372427,4437.1,4435.8,0.026]
[1756908795902,1.74737596,4437.0,4435.8,0.026]
[1756908796257,2.26820638,4436.9,4435.8,0.026]
[1756908796408,5.844,4437.0,4436.3,2.25408654]
[1756908796824,1.733,4437.0,4436.3,14.67699132]
[1756908797028,1.77237596,4437.8,4436.9,2.25381914]
[1756908797234,5.344,4437.8,4436.6,2.2539661]
[1756908797418,5.344,4437.8,4436.4,1.46769913]
[1756908797606,7.59737323,4437.8,4436.7,2.25388279]
[1756908797806,1.758,4437.8,4436.4,1.46769913]
[1756908798008,4.112,4437.7,4436.5,0.67218219]
[1756908798208,2.25347491,4437.6,4436.8,2.25383565]
[1756908798412,2.25377645,4437.0,4436.4,1.46769913]
[1756908798769,4.12437596,4437.2,4435.9,0.4556]
[1756908798942,4.12437596,4437.2,4436.5,2.25402231]
[1756908799145,2.2537398,4437.1,4436.3,2.2541175]
[1756908799315,0.01437596,4437.0,4436.5,2.25398776]
[1756908799642,2.2681594,4437.0,4436.2,2.25416653]
[1756908799807,0.01437596,4437.0,4436.3,0.22541665]
[1756908800008,0.01437596,4437.0,4435.8,0.026]
[1756908800233,0.01437596,4437.0,4435.9,2.25433395]
[1756908800415,0.01437596,4437.0,4436.1,2.36699217]
[1756908800416,0.1128,4436.7,4436.1,2.36699217]
[1756908800816,0.3141,4436.2,4435.8,0.026]
[1756908801128,2.36713395,4435.9,4435.8,0.026]
[1756908801305,2.36713395,4435.9,4435.3,0.001]
[1756908801306,2.25451152,4435.6,4435.3,0.001]
[1756908801511,2.36738808,4435.4,4435.3,0.001]
[1756908801840,2.25479143,4435.0,4434.8,0.025]
[1756908802046,7.11496739,4435.0,4434.8,0.025]
[1756908802227,2.25489311,4434.8,4433.6,0.001]
[1756908802404,5.8368,4435.0,4433.6,0.001]
[1756908802405,2.36815081,4433.9,4433.6,0.001]
[1756908802622,1.8458,4433.9,4433.6,0.001]
[1756908803059,5.89852677,4433.9,4433.6,0.001]
[1756908803267,2.25557795,4433.5,4433.2,0.001]
[1756908803484,2.25577842,4433.1,4431.8,0.025]
[1756908803794,5.25585959,4432.9,4431.8,0.025]
[1756908804129,7.03885959,4432.9,4431.8,0.025]
[1756908805080,11.16285959,4432.9,4431.8,0.025]
[1756908805655,7.03885959,4432.9,4431.8,0.025]
[1756908805859,3.991,4432.9,4431.8,0.025]
[1756908806164,4.123,4432.9,4431.8,0.025]
[1756908806320,1.733,4433.0,4431.8,0.1052]
[1756908806524,1.733,4433.0,4432.2,2.25618261]
[1756908806754,1.733,4433.0,4432.1,2.25625479]
[1756908806755,4.141,4433.0,4432.1,2.25625479]
[1756908806920,4.141,4433.0,4431.9,15.13259132]
[1756908807255,0.01437596,4432.9,4431.8,0.025]
[1756908807457,4.14437596,4432.9,4431.9,2.25636352]
[1756908807761,4.13,4432.9,4431.8,0.025]
[1756908807961,1.734,4433.7,4432.8,0.5618]
[1756908808160,0.4814,4434.8,4432.8,0.026]
[1756908808161,1.734,4434.0,4432.8,0.026]
[1756908808520,2.00637596,4433.9,4432.9,1.47029913]
[1756908808760,2.25585959,4432.9,4432.8,0.026]
[1756908808965,8.11785959,4432.9,4432.8,0.026]
[1756908809170,1.734,4432.9,4432.8,0.026]
[1756908809323,0.01437596,4433.2,4432.8,0.026]
[1756908809523,2.25551883,4433.6,4432.8,0.026]
[1756908809524,4.147,4433.6,4432.8,0.026]
[1756908809740,0.5524,4435.0,4432.9,0.68379449]
[1756908810021,0.645,4434.6,4433.2,14.67699132]
[1756908810343,3.70237596,4434.6,4433.3,0.4556]
[1756908810544,1.734,4434.9,4433.3,0.5358]
[1756908810756,4.19237596,4434.8,4433.3,0.5358]
[1756908810969,0.025,4434.8,4434.4,2.25509651]
[1756908811272,0.12208304,4434.5,4434.4,2.25509651]
[1756908811450,0.12208304,4434.5,4433.7,0.4556]
[1756908811761,0.01437596,4434.4,4433.8,0.34556]
[1756908811961,2.25526959,4434.1,4432.8,2.28189354]
[1756908812124,0.01437596,4434.0,4433.0,2.25576677]
[1756908812487,2.25535081,4433.9,4432.8,0.026]
[1756908812757,1.13688304,4434.5,4432.8,0.026]
[1756908812952,2.26947796,4434.4,4432.9,0.31541648]
[1756908813179,3.0,4434.1,4432.4,14.67699132]
[1756908813322,0.1128,4433.7,4433.1,0.1128]
[1756908813825,0.792,4433.2,4431.7,0.1128]
[1756908814130,3.0,4433.5,4430.1,0.0802]
[1756908814131,0.1128,4431.8,4430.1,0.0802]
[1756908814345,0.1128,4431.3,4430.7,0.1138]
[1756908814547,0.1128,4431.3,4431.0,2.25682058]
[1756908814745,3.0,4432.5,4431.2,0.30598206]
[1756908814955,1.734,4432.8,4432.2,2.2561759]
[1756908815157,2.41230717,4433.6,4431.3,3.0]
[1756908815347,4.163,4433.4,4431.6,0.0802]
[1756908815545,2.93326164,4434.5,4431.8,3.0]
[1756908815721,0.025,4432.8,4432.7,2.25596137]
[1756908815925,0.025,4432.8,4432.7,2.33616137]
[1756908816125,0.4874,4432.8,4431.2,0.22578206]
[1756908816369,0.4874,4432.8,4430.7,0.001]
[1756908816370,2.25614549,4432.4,4430.7,0.001]
[1756908816552,0.01437596,4432.3,4430.7,0.001]
[1756908816873,2.2562783,4432.1,4430.7,0.001]
[1756908817071,0.01437596,4432.1,4430.7,0.001]
[1756908817283,2.25636451,4432.0,4430.7,0.001]
[1756908817430,3.0,4432.0,4430.7,0.001]
[1756908817645,3.0,4432.0,4431.1,2.25776894]
[1756908817646,3.0,4431.9,4431.1,2.25776894]
[1756908817981,0.01437596,4431.8,4431.2,0.22577689]
[1756908818156,7.177,4432.9,4431.1,0.001]
[1756908818346,3.0,4432.9,4431.1,0.793]
[1756908818689,0.4624,4433.6,4432.7,2.25596137]
[1756908818844,3.0,4433.5,4432.7,2.25596137]
[1756908819046,0.1207029,4434.3,4432.7,2.33616137]
[1756908819246,0.1207029,4434.3,4432.7,8.44026137]
[1756908819457,0.1207029,4434.3,4432.7,9.50989134]
[1756908820274,0.01437596,4434.2,4432.7,9.31779134]
[1756908820458,0.13507886,4434.3,4432.7,9.23759134]
[1756908820658,0.13507886,4434.3,4432.7,5.05959134]
[1756908820659,0.4624,4433.9,4432.7,5.05959134]
[1756908820857,0.03937596,4433.8,4432.7,3.98996137]
[1756908821459,0.025,4433.8,4432.7,4.26226137]
[1756908822151,0.025,4433.8,4432.7,4.07016137]
[1756908822346,0.025,4433.8,4432.7,4.26226137]
[1756908822646,0.025,4433.8,4432.7,3.98996137]
[1756908822846,0.4624,4433.7,4432.7,4.61456259]
[1756908823060,0.025,4433.8,4432.7,4.61456259]
[1756908823348,1e-08,4432.8,4432.7,4.80666259]
[1756908823598,1e-08,4432.8,4432.7,4.61456259]
[1756908824048,1e-08,4432.8,4432.7,8.78756259]
[1756908824651,1e-08,4432.8,4432.7,8.90036259]
[1756908824846,1.01480001,4432.8,4431.3,1.734]
[1756908825159,0.5524,4432.7,4431.3,4.734]
[1756908825365,0.5524,4432.7,4432.3,2.2561644]
[1756908825858,0.5524,4432.7,4431.3,4.734]
[1756908826289,1e-08,4432.8,4432.7,2.25596137]
[1756908826460,1e-08,4432.8,4432.7,2.48155751]
[1756908826672,1e-08,4432.8,4432.7,0.22559614]
[1756908826875,1e-08,4432.8,4432.2,5.908]
[1756908827098,1e-08,4432.8,4431.6,4.173]
[1756908827264,1e-08,4432.8,4432.3,2.25612137]
[1756908827463,1e-08,4432.8,4432.7,2.25596137]
[1756908827697,1e-08,4432.8,4431.3,1.734]
[1756908827858,1.0148,4432.7,4431.4,4.3465]
[1756908828194,3.27077962,4432.7,4431.4,4.3465]
[1756908828495,1.0148,4432.7,4432.0,2.25628423]
[1756908828699,1.0148,4432.7,4431.4,4.3465]
[1756908828700,2.25608442,4432.5,4431.8,2.25641252]
[1756908828862,2.25608442,4432.5,4431.3,1.734]
[1756908828863,1.0148,4432.4,4431.3,1.734]
[1756908829070,2.25621587,4432.2,4431.3,2.25664474]
[1756908829266,0.4624,4432.3,4431.3,2.25664474]
[1756908829479,0.47677596,4432.3,4431.4,2.25662318]
[1756908829683,0.47677596,4432.3,4431.5,2.2565502]
[1756908830003,2.25631267,4432.1,4431.2,2.25670574]
[1756908830198,1.0148,4432.2,4431.5,2.25656148]
[1756908830383,1.0148,4432.2,4431.3,2.25664127]
[1756908830569,1.0148,4432.2,4431.2,2.25672504]
[1756908830886,0.01437596,4432.1,4431.4,2.25657368]
[1756908831064,3.0,4431.9,4431.1,0.001]
[1756908831267,3.0,4431.7,4431.1,0.001]
[1756908831467,2.25668232,4431.3,4431.1,0.001]
[1756908831705,0.01437596,4431.6,4431.1,0.001]
[1756908831706,0.01437596,4431.2,4431.1,0.001]
[1756908831911,0.4624,4431.2,4431.1,0.001]
[1756908832109,0.4624,4432.6,4431.1,0.2292917]
[1756908832405,0.4624,4432.6,4431.5,2.25652429]
[1756908832406,2.25616541,4432.3,4431.5,2.25652429]
[1756908832719,1.0148,4432.2,4431.1,0.2292917]
[1756908832919,0.4624,4432.7,4431.4,2.25662318]
[1756908833125,0.4624,4432.7,4431.2,2.25672504]
[1756908833290,0.4624,4432.7,4432.2,2.2561735]
[1756908833494,1.73400001,4432.8,4432.7,2.25596137]
[1756908833883,1e-08,4432.8,4432.7,2.25596137]
[1756908834935,1e-08,4432.8,4432.7,2.36876137]
[1756908835587,0.1128,4433.5,4433.4,2.25560517]
[1756908835787,1.1276,4433.5,4432.7,0.1128]
[1756908836019,1.1276,4433.5,4433.0,2.25576739]
[1756908836220,0.1128,4433.5,4433.2,2.25568906]
[1756908836434,1.0148,4433.4,4432.7,0.1128]
[1756908836927,0.1128,4433.5,4433.4,2.25560517]
[1756908837090,0.025,4433.8,4432.7,2.79764016]
[1756908837091,0.025,4433.8,4433.7,2.25545255]
[1756908837287,0.025,4433.8,4433.4,2.2555742]
[1756908837594,0.025,4433.8,4433.2,4.168]
[1756908837595,0.025,4433.8,4433.7,2.25545255]
[1756908837991,0.025,4433.8,4433.7,2.7065484]
[1756908838330,0.025,4433.8,4433.7,2.25545255]
[1756908839792,0.025,4433.8,4433.6,0.1128]
[1756908839989,1.094,4433.7,4433.6,0.1128]
[1756908840298,0.025,4433.8,4433.6,0.1128]
[1756908840508,0.025,4433.8,4433.4,2.25558954]
[1756908840704,0.025,4433.8,4433.5,2.25555317]
[1756908841035,0.025,4433.8,4433.1,0.1128]
[1756908841201,0.1128,4433.7,4433.4,2.25555903]
[1756908841703,0.025,4433.8,4433.7,2.25545255]
[1756908843098,0.025,4433.8,4433.7,2.38385255]
[1756908843293,0.025,4433.8,4433.7,2.49665255]
[1756908843519,0.025,4433.8,4433.7,2.76895255]
[1756908843825,0.025,4433.8,4433.7,3.28650243]
[1756908844197,1e-08,4433.9,4433.8,3.04740168]
[1756908844395,1e-08,4433.9,4433.8,2.25540168]
[1756908844807,1e-08,4433.9,4433.8,6.41040168]
[1756908845195,1e-08,4433.9,4433.8,7.28260168]
[1756908845397,1e-08,4433.9,4433.8,12.74260965]
[1756908845628,1e-08,4433.9,4433.8,8.31530965]
[1756908845826,1e-08,4433.9,4433.8,12.46930965]
[1756908846329,1e-08,4433.9,4433.8,12.87000965]
[1756908846516,1e-08,4433.9,4433.8,12.78980965]
[1756908846701,1e-08,4433.9,4433.8,7.65170965]
[1756908846901,1e-08,4433.9,4433.8,9.53380168]
[1756908848021,1e-08,4433.9,4433.8,10.43900956]
[1756908848542,1e-08,4433.9,4433.8,10.71130956]
[1756908848747,1e-08,4435.4,4434.8,0.792]
[1756908848932,1e-08,4435.4,4435.3,2.25463891]
[1756908849233,1e-08,4435.4,4435.3,8.12439595]
[1756908849400,0.45860001,4435.4,4435.3,0.1128]
[1756908849601,1.39180001,4435.4,4435.3,6.51343891]
[1756908849824,1.39180001,4435.4,4435.3,0.1128]
[1756908850041,1.39180001,4435.4,4435.1,2.25473556]
[1756908850243,1.094,4435.3,4434.9,1.8468]
[1756908850539,1.094,4435.3,4435.2,2.25468975]
[1756908850902,1.3918,4435.3,4434.9,0.1128]
[1756908851229,1.3918,4435.3,4435.0,2.25479143]
[1756908851230,1.094,4435.2,4435.0,2.25479143]
[1756908851414,1.094,4435.2,4434.9,0.1128]
[1756908851947,1e-08,4435.4,4434.9,0.1128]
[1756908852119,1.094,4435.1,4435.0,2.25477876]
[1756908852314,1.3918,4435.1,4435.0,2.25477876]
[1756908852804,1.3918,4435.1,4434.2,1.734]
[1756908853133,0.1128,4434.7,4434.0,0.1128]
[1756908853601,0.4586,4434.6,4434.5,2.25504251]
[1756908853808,1.3918,4434.6,4434.1,2.25524909]
[1756908854138,1.094,4434.5,4433.3,1.734]
[1756908854309,0.1128,4434.2,4433.5,0.1128]
[1756908854636,0.2978,4433.9,4433.8,2.28040168]
[1756908855012,0.7564,4433.9,4433.8,2.28040168]
[1756908855427,1.3918,4433.9,4433.8,0.025]
[1756908855949,0.7564,4433.9,4433.8,2.28040168]
[1756908856233,1.3918,4433.9,4433.8,0.025]
[1756908856739,6.77432677,4433.9,4433.8,0.025]
[1756908856945,6.75995081,4433.9,4433.8,0.025]
[1756908857251,6.75995081,4433.9,4432.8,0.1378]
[1756908857252,3.0,4433.8,4432.8,0.025]
[1756908857450,0.01437596,4433.7,4432.8,0.025]
[1756908857751,0.2978,4432.9,4432.8,0.025]
[1756908857906,1.3918,4432.9,4432.8,0.025]
[1756908858102,5.19817596,4432.9,4431.8,0.025]
[1756908858307,3.0,4432.8,4431.8,0.025]
[1756908858556,0.01437596,4432.7,4431.8,0.025]
[1756908858701,4.094,4432.6,4431.8,0.025]
[1756908858906,0.2978,4431.9,4431.8,0.025]
[1756908859318,1.3918,4431.9,4431.8,0.025]
[1756908859925,3.0,4432.5,4431.8,0.025]
[1756908859926,4.129,4432.5,4431.8,0.025]
[1756908860114,4.129,4432.5,4431.8,0.026]
[1756908860314,3.01437596,4432.6,4431.9,2.25635901]
[1756908860519,3.0,4432.8,4431.8,0.026]
[1756908860520,0.2978,4431.9,4431.8,0.026]
[1756908860739,1.094,4432.5,4431.8,2.28241951]
[1756908860955,1.094,4432.5,4432.1,2.25624799]
[1756908861112,1.094,4432.5,4431.9,2.25636681]
[1756908861113,1.094,4432.5,4432.2,2.25621523]
[1756908861309,1.094,4432.5,4432.0,2.25628175]
[1756908861524,0.2978,4432.1,4431.8,2.28241153]
[1756908861724,1.094,4432.4,4432.0,2.25627194]
[1756908862113,1.094,4432.3,4431.8,0.026]
[1756908862441,7.127,4432.8,4431.8,0.026]
[1756908862642,7.127,4432.8,4432.0,2.25626953]
[1756908862854,0.4586,4432.7,4431.8,0.026]
[1756908863022,5.25603317,4432.6,4431.8,2.28241146]
[1756908863223,8.75128767,4432.9,4431.8,0.026]
[1756908863224,6.4944,4432.9,4431.8,0.026]
[1756908863549,1.734,4432.9,4432.6,2.25596305]
[1756908863852,0.4586,4432.8,4431.8,0.026]
[1756908864020,0.01437596,4432.7,4431.8,0.8400531]
[1756908864223,0.01437596,4432.7,4431.9,2.25631895]
[1756908864224,0.4586,4432.6,4431.9,2.25631895]
[1756908864539,0.6354,4432.5,4431.9,2.2563686]
[1756908864739,0.6354,4432.5,4431.8,0.026]
[1756908864940,0.6354,4432.5,4432.4,2.25611406]
[1756908865143,1.734,4432.9,4432.5,2.25604361]
[1756908865350,0.4586,4432.8,4431.8,0.026]
[1756908865550,4.094,4432.8,4431.8,0.026]
[1756908865854,0.2978,4431.9,4431.8,0.026]
[1756908866061,8.214,4432.8,4431.8,0.026]
[1756908866062,4.126,4432.3,4431.8,0.026]
[1756908866222,3.0,4432.6,4431.8,0.026]
[1756908866223,0.2978,4431.9,4431.8,0.026]
[1756908866643,0.7564,4431.9,4431.8,0.026]
[1756908866849,0.4586,4431.9,4431.8,0.026]
[1756908867050,1.094,4431.9,4431.8,0.026]
[1756908867232,1.5046,4431.9,4431.8,0.026]
[1756908867747,0.7482,4431.9,4431.8,0.026]
[1756908868137,1.5046,4431.9,4431.8,0.026]
[1756908869072,7.01176861,4431.9,4431.8,0.026]
[1756908869236,2.25662318,4431.4,4431.3,0.001]
[1756908869440,9.50579914,4431.4,4431.3,0.001]
[1756908869637,9.78172318,4431.4,4431.3,0.001]
[1756908869831,10.89182318,4431.4,4431.3,0.001]
[1756908870157,3.1128,4431.4,4431.3,0.001]
[1756908870377,3.2903,4431.4,4431.3,0.001]
[1756908870580,4.5132,4431.4,4431.3,0.001]
[1756908870749,8.65057596,4431.4,4431.3,0.001]
[1756908870949,8.6362,4431.4,4431.3,0.001]
[1756908871150,2.1968,4431.9,4431.3,0.001]
[1756908871383,4.123,4431.8,4431.3,0.001]
[1756908871601,0.01437596,4431.8,4431.3,0.001]
[1756908871790,0.2903,4431.4,4431.3,0.001]
[1756908872348,3.0,4431.6,4431.3,0.001]
[1756908872567,0.7531,4431.4,4431.3,0.001]
[1756908872784,1.4004,4431.4,4431.3,0.001]
[1756908873102,2.2569797,4430.7,4429.8,0.026]
[1756908873385,3.0,4430.6,4429.8,0.026]
[1756908873569,3.2903,4430.4,4429.8,0.026]
[1756908873779,5.54743253,4430.4,4429.8,0.026]
[1756908873978,6.65753253,4430.4,4429.8,0.026]
[1756908874295,6.90833254,4430.4,4429.8,0.026]
[1756908874587,6.65753253,4430.4,4429.8,0.026]
[1756908875695,7.44953253,4430.4,4429.8,0.026]
[1756908876986,1.4004,4430.4,4429.8,0.026]
[1756908877153,10.79990849,4430.4,4429.8,0.026]
[1756908877354,10.78553253,4430.4,4429.8,0.026]
[1756908877773,6.65753253,4430.4,4429.8,0.026]
[1756908877981,10.78453253,4430.4,4429.8,0.026]
[1756908878287,10.78353253,4430.4,4429.8,0.026]
[1756908878786,10.78253253,4430.4,4429.8,0.026]
[1756908878994,6.65753253,4430.4,4429.8,0.026]
[1756908879164,10.78053253,4430.4,4429.8,0.026]
[1756908879659,11.57253253,4430.4,4429.8,0.026]
[1756908879858,2.25759115,4429.5,4429.4,0.001]
[1756908880071,7.78459115,4429.5,4429.4,0.001]
[1756908880258,12.52199115,4429.5,4429.4,0.001]
[1756908880458,13.31499115,4429.5,4429.4,0.001]
[1756908880862,13.40550926,4429.5,4429.4,0.001]
[1756908881194,13.51830926,4429.5,4429.4,0.001]
[1756908882591,9.38830926,4429.5,4429.4,0.001]
[1756908882899,13.51430926,4429.5,4429.4,0.001]
[1756908883097,13.40150926,4429.5,4429.4,0.001]
[1756908883957,13.40050926,4429.5,4429.4,0.001]
[1756908884358,13.39670926,4429.5,4429.4,0.001]
[1756908885159,9.27470926,4429.5,4429.4,0.001]
[1756908885364,11.20230926,4429.5,4429.4,0.001]
[1756908885564,8.856,4429.5,4429.4,0.001]
[1756908885967,11.11359115,4429.5,4429.4,0.001]
[1756908886664,8.856,4429.5,4429.4,0.001]
[1756908886874,11.11359115,4429.5,4429.4,0.001]
[1756908887074,3.0,4429.5,4429.4,0.001]
[1756908887277,9.37859115,4429.5,4429.4,0.001]
[1756908887468,7.121,4429.5,4429.4,0.001]
[1756908887692,3.0,4429.5,4429.4,0.001]
[1756908887894,7.128,4429.5,4429.4,0.001]
[1756908888092,9.38559115,4429.5,4429.4,0.001]
[1756908888408,7.128,4429.5,4429.4,0.001]
[1756908888872,4.126,4429.5,4429.4,0.2555]
[1756908889068,4.126,4429.5,4429.4,0.50682922]
[1756908889600,4.126,4429.5,4429.4,0.2555]
[1756908889816,6.39796711,4429.5,4429.4,0.001]
[1756908889985,9.38359115,4429.5,4429.4,0.001]
[1756908890188,7.125,4429.5,4429.4,0.001]
[1756908890390,7.124,4429.5,4429.4,0.2555]
[1756908890579,4.125,4429.5,4429.4,2.51313087]
[1756908890913,4.124,4429.5,4429.4,0.001]
[1756908891071,6.38159115,4429.5,4429.4,0.001]
[1756908891273,10.02889115,4429.5,4429.4,0.001]
[1756908891583,9.38159115,4429.5,4429.4,0.001]
[1756908892192,12.51799115,4429.5,4429.4,0.001]
[1756908892804,13.30699115,4429.5,4429.4,0.001]
[1756908893322,13.41879115,4429.5,4429.4,0.001]
[1756908894407,9.29879115,4429.5,4429.4,0.001]
[1756908894617,13.41479115,4429.5,4429.4,0.001]
[1756908896381,3.04989699,4428.9,4428.8,0.025]
[1756908896582,10.27469699,4428.9,4428.8,0.025]
[1756908896789,11.67409699,4428.9,4428.8,0.025]
[1756908897178,7.27279699,4428.9,4428.8,0.025]
[1756908897382,6.80999699,4428.9,4428.8,0.025]
[1756908897621,5.37069699,4428.9,4428.8,0.025]
[1756908897978,9.47769699,4428.9,4428.8,0.025]